[Event "Paracin Open 2022"]
[Site "Paracin"]
[Date "2022.07.12"]
[Round "5.3"]
[White "Erdogmus, Yagiz Kaan"]
[Black "Makarian, Rudik"]
[Result "1/2-1/2"]
[ECO "A62"]
[WhiteElo "2373"]
[BlackElo "2533"]
[Annotator "ChessBase"]
[PlyCount "61"]
[EventDate "2022.07.08"]
[EventCountry "SRB"]
[SourceTitle "playchess.com"]
[Source "ChessBase"]
[SourceQuality "1"]
[TimeControl "5400+30"]

1. d4 {[%emt 0:00:02]} Nf6 {[%emt 0:00:22]} 2. c4 {[%emt 0:00:51]} g6 {[%emt 0:01:57]} 3. g3 {[%emt 0:00:47]} Bg7 {[%emt 0:03:06]} 4. Bg2 {[%emt 0:01:20]} c5 {[%emt 0:00:10]} 5. d5 {[%emt 0:05:23]} O-O {[%emt 0:00:10]} 6. Nc3 {[%emt 0:00:24]} d6 {[%emt 0:00:10]} 7. Nf3 {[%emt 0:01:12]} e6 {[%emt 0:00:04]} 8. O-O {[%emt 0:00:12]} exd5 {[%emt 0:00:03]} 9. cxd5 {[%emt 0:00:07]} Re8 {[%emt 0:00:02]} 10. Bf4 {[%emt 0:00:06]} a6 {[%emt 0:02:36]} 11. a4 {[%emt 0:01:15]} Ne4 {[%emt 0:00:00]} 12. Nxe4 {[%emt 0:00:00]} Rxe4 {[%emt 0:00:00]} 13. Nd2 {[%emt 0:00:00]} Rb4 {[%emt 0:00:00]} 14. Ra2 {[%emt 0:00:06]} a5 {[%emt 0:06:46]} 15. b3 {[%emt 0:20:04]} b6 {[%emt 0:00:03]} 16. Qc2 {[%emt 0:16:45]} Ba6 {[%emt 0:02:14]} 17. Ne4 {[%emt 0:07:29]} h6 {[%emt 0:02:44]} 18. Bd2 {[%emt 0:13:08]} f5 {[%emt 0:00:52]} 19. Bxb4 {[%emt 0:02:34]} cxb4 {[%emt 0:00:06]} 20. Nd2 {[%emt 0:00:52]} Nd7 {[%emt 0:00:04]} 21. Rc1 {[%emt 0:05:29]} Rc8 {[%emt 0:13:28]} 22. Qd1 {[%emt 0:00:19]} Rxc1 {[%emt 0:00:08]} 23. Qxc1 {[%emt 0:00:05]} Nc5 {[%emt 0:00:03]} 24. e3 {[%emt 0:05:25]} Bc3 {[%emt 0:02:34]} 25. Nb1 {[%emt 0:06:24]} Bg7 {[%emt 0:22:54]} 26. Nd2 {[%emt 0:00:13]} Bc3 {[%emt 0:01:38]} 27. Nb1 {[%emt 0:13:28]} Nxb3 {[%emt 0:41:46]} 28. Qd1 {[%emt 0:00:30]} Qc7 {[%emt 0:00:30]} 29. Qxb3 {[%emt 0:00:30]} Bc4 30. Qc2 b3 31. Qc1 1/2-1/2

[Event "Paracin Open 2022"]
[Site "Paracin"]
[Date "2022.07.12"]
[Round "5.4"]
[White "Arjun Kalyan"]
[Black "Neelash Saha"]
[Result "1/2-1/2"]
[ECO "B90"]
[WhiteElo "2499"]
[BlackElo "2446"]
[Annotator "ChessBase"]
[PlyCount "118"]
[EventDate "2022.07.08"]
[EventCountry "SRB"]
[SourceTitle "playchess.com"]
[Source "ChessBase"]
[SourceQuality "1"]
[TimeControl "5400+30"]

1. e4 {[%emt 0:00:01]} c5 {[%emt 0:02:16]} 2. Nf3 {[%emt 0:00:05]} d6 {[%emt 0:00:05]} 3. d4 {[%emt 0:00:04]} cxd4 {[%emt 0:00:02]} 4. Nxd4 {[%emt 0:00:05]} Nf6 {[%emt 0:00:04]} 5. Nc3 {[%emt 0:00:05]} a6 {[%emt 0:00:02]} 6. Be3 {[%emt 0:00:07]} Ng4 {[%emt 0:00:03]} 7. Bc1 {[%emt 0:00:25]} Nf6 {[%emt 0:00:05]} 8. Be3 {[%emt 0:01:55]} Ng4 {[%emt 0:00:05]} 9. Bg5 {[%emt 0:00:04]} h6 {[%emt 0:00:04]} 10. Bh4 {[%emt 0:00:03]} g5 {[%emt 0:00:05]} 11. Bg3 {[%emt 0:00:04]} Bg7 {[%emt 0:00:03]} 12. h3 {[%emt 0:00:10]} Ne5 {[%emt 0:00:08]} 13. Nf5 {[%emt 0:02:25]} Bxf5 {[%emt 0:00:07]} 14. exf5 {[%emt 0:00:03]} Nbc6 {[%emt 0:00:06]} 15. Nd5 {[%emt 0:00:37]} e6 {[%emt 0:01:57]} 16. fxe6 {[%emt 0:01:21]} fxe6 {[%emt 0:00:04]} 17. Ne3 {[%emt 0:00:08]} Qa5+ {[%emt 0:00:09]} 18. c3 {[%emt 0:00:05]} Nf3+ {[%emt 0:01:32]} 19. Qxf3 {[%emt 0:00:07]} Bxc3+ {[%emt 0:00:33]} 20. Kd1 {[%emt 0:00:18]} Bxb2 {[%emt 0:03:18]} 21. Qe4 {[%emt 0:35:53]} Bxa1 {[%emt 0:13:47]} 22. Qxe6+ {[%emt 0:00:20]} Ne7 {[%emt 0:00:07]} 23. Bxd6 {[%emt 0:11:45]} Qa4+ {[%emt 0:00:04]} 24. Nc2 {[%emt 0:00:04]} Qd7 {[%emt 0:00:03]} 25. Qxd7+ {[%emt 0:00:29]} Kxd7 {[%emt 0:00:05]} 26. Bxe7 {[%emt 0:00:03]} Kxe7 {[%emt 0:00:41]} 27. Nxa1 {[%emt 0:00:04]} Rhf8 {[%emt 0:03:25]} 28. f3 {[%emt 0:01:00]} Rad8+ {[%emt 0:04:19]} 29. Kc1 {[%emt 0:00:16]} Kf6 {[%emt 0:00:11]} 30. Nc2 {[%emt 0:02:35]} Ke5 {[%emt 0:01:50]} 31. h4 {[%emt 0:04:30]} Kf4 {[%emt 0:00:46]} 32. hxg5 {[%emt 0:00:06]} hxg5 {[%emt 0:00:04]} 33. Rh7 {[%emt 0:06:14]} Rh8 {[%emt 0:00:06]} 34. Rxh8 {[%emt 0:07:56]} Rxh8 {[%emt 0:00:07]} 35. Bd3 {[%emt 0:01:49]} b5 {[%emt 0:07:01]} 36. Be4 {[%emt 0:02:16]} g4 {[%emt 0:02:24]} 37. Kd2 {[%emt 0:00:45]} Rh2 {[%emt 0:15:20]} 38. Ne1 {[%emt 0:03:16]} gxf3 {[%emt 0:00:27]} 39. Bxf3 {[%emt 0:00:03]} a5 {[%emt 0:05:12]} 40. Kc3 {[%emt 0:01:54]} Ke5 {[%emt 0:03:48]} 41. Nd3+ {[%emt 0:00:29]} Kd6 {[%emt 0:00:06]} 42. Kd4 {[%emt 0:01:00]} Rh1 {[%emt 0:00:29]} 43. Nf2 {[%emt 0:01:10]} Rb1 {[%emt 0:00:24]} 44. Ne4+ {[%emt 0:00:26]} Ke7 {[%emt 0:01:24]} 45. Nc3 {[%emt 0:02:52]} Rb4+ {[%emt 0:00:21]} 46. Ke5 {[%emt 0:09:55]} Rb2 {[%emt 0:00:58]} 47. a4 {[%emt 0:02:24]} bxa4 {[%emt 0:00:36]} 48. Nxa4 {[%emt 0:00:02]} Rb5+ {[%emt 0:00:44]} 49. Bd5 {[%emt 0:00:04]} Kf8 {[%emt 0:00:42]} 50. Nc3 {[%emt 0:02:43]} Rb4 {[%emt 0:00:19]} 51. Kd6 {[%emt 0:01:09]} Kg7 {[%emt 0:02:11]} 52. Kc5 {[%emt 0:00:05]} Kg6 {[%emt 0:00:47]} 53. Nb5 {[%emt 0:00:50]} Kg5 {[%emt 0:01:50]} 54. Kb6 {[%emt 0:00:07]} a4 {[%emt 0:01:12]} 55. Ka5 {[%emt 0:00:09]} Rf4 {[%emt 0:00:30]} 56. Bf3 {[%emt 0:01:43]} Kh4 {[%emt 0:00:52]} 57. Bd1 {[%emt 0:00:31]} Kg3 {[%emt 0:00:06]} 58. Bxa4 {[%emt 0:00:06]} Rxa4+ {[%emt 0:00:05]} 59. Kxa4 {[%emt 0:00:03]} Kxg2 {[%emt 0:00:03]} 1/2-1/2

[Event "Paracin Open 2022"]
[Site "Paracin"]
[Date "2022.07.12"]
[Round "5.5"]
[White "Urazayev, Arystanbek"]
[Black "Suleymenov, Alisher"]
[Result "1-0"]
[ECO "B31"]
[WhiteElo "2430"]
[BlackElo "2467"]
[Annotator "ChessBase"]
[PlyCount "115"]
[EventDate "2022.07.08"]
[EventCountry "SRB"]
[SourceTitle "playchess.com"]
[Source "ChessBase"]
[SourceQuality "1"]
[TimeControl "5400+30"]

1. e4 {[%emt 0:00:34]} c5 {[%emt 0:00:10]} 2. Nf3 {[%emt 0:00:17]} Nc6 {[%emt 0:00:33]} 3. Bb5 {[%emt 0:00:46]} g6 {[%emt 0:00:34]} 4. O-O {[%emt 0:02:38]} Bg7 {[%emt 0:00:05]} 5. c3 {[%emt 0:00:25]} Nf6 {[%emt 0:03:40]} 6. Re1 {[%emt 0:00:22]} O-O {[%emt 0:00:22]} 7. d4 {[%emt 0:00:06]} d5 {[%emt 0:13:32]} 8. e5 {[%emt 0:00:21]} Ne4 {[%emt 0:00:11]} 9. Be3 {[%emt 0:00:10]} Qb6 {[%emt 0:14:20]} 10. Bxc6 {[%emt 0:00:14]} Qxc6 {[%emt 0:02:18]} 11. dxc5 {[%emt 0:09:31]} Nxc5 {[%emt 0:03:59]} 12. Nd4 {[%emt 0:00:09]} Qa6 {[%emt 0:07:12]} 13. b4 {[%emt 1:21:27]} Na4 {[%emt 0:07:06]} 14. Qb3 {[%emt 0:00:00]} e6 {[%emt 0:04:42]} 15. Bg5 {[%emt 0:00:00]} Nb6 {[%emt 0:05:17]} 16. Nd2 {[%emt 0:00:00]} Bd7 {[%emt 0:00:06]} 17. a4 {[%emt 0:00:00]} Nc4 {[%emt 0:16:01]} 18. Nxc4 {[%emt 0:00:00]} Qxc4 {[%emt 0:00:03]} 19. Qxc4 {[%emt 0:00:00]} dxc4 {[%emt 0:00:03]} 20. Be7 {[%emt 0:00:00]} Rfc8 {[%emt 0:04:27]} 21. f4 {[%emt 0:00:00]} Bc6 {[%emt 0:00:22]} 22. Nxc6 {[%emt 0:00:00]} Rxc6 {[%emt 0:00:03]} 23. Rad1 {[%emt 0:00:00]} Rc7 {[%emt 0:04:31]} 24. Bd6 {[%emt 0:00:00]} Rc6 {[%emt 0:02:42]} 25. Rd4 {[%emt 0:00:00]} a6 {[%emt 0:00:23]} 26. a5 {[%emt 0:00:00]} Rac8 {[%emt 0:02:16]} 27. Red1 {[%emt 0:00:00]} h5 {[%emt 0:02:30]} 28. Kf2 {[%emt 0:02:11]} f6 {[%emt 0:04:03]} 29. Ke3 {[%emt 0:00:41]} Kh7 {[%emt 0:00:58]} 30. exf6 {[%emt 0:00:52]} Bxf6 {[%emt 0:00:03]} 31. Be5 {[%emt 0:00:05]} Bxe5 {[%emt 0:00:33]} 32. fxe5 {[%emt 0:00:02]} Kh6 {[%emt 0:00:18]} 33. h4 {[%emt 0:02:20]} Rf8 {[%emt 0:01:13]} 34. Rf4 {[%emt 0:00:17]} Rcc8 {[%emt 0:00:34]} 35. Rdd4 {[%emt 0:02:28]} g5 {[%emt 0:00:43]} 36. hxg5+ {[%emt 0:00:48]} Kxg5 {[%emt 0:00:01]} 37. Rxf8 {[%emt 0:00:47]} Rxf8 {[%emt 0:00:01]} 38. Rxc4 {[%emt 0:00:07]} Rf5 {[%emt 0:00:11]} 39. Re4 {[%emt 0:01:21]} Rf1 {[%emt 0:00:36]} 40. Ke2 {[%emt 0:00:20]} Rc1 {[%emt 0:00:31]} 41. Rc4 {[%emt 0:00:35]} Kf5 {[%emt 0:00:35]} 42. Rc7 {[%emt 0:00:10]} Rc2+ {[%emt 0:00:47]} 43. Kd3 {[%emt 0:01:06]} Rxg2 {[%emt 0:00:04]} 44. Rxb7 {[%emt 0:00:04]} h4 {[%emt 0:01:12]} 45. Rh7 {[%emt 0:00:23]} Rg3+ {[%emt 0:01:03]} 46. Kd4 {[%emt 0:00:12]} h3 {[%emt 0:00:21]} 47. c4 {[%emt 0:00:30]} Ra3 {[%emt 0:01:15]} 48. c5 {[%emt 0:00:23]} Kg4 {[%emt 0:01:16]} 49. c6 {[%emt 0:00:15]} Ra1 {[%emt 0:00:29]} 50. Kc5 {[%emt 0:00:12]} Rc1+ {[%emt 0:00:36]} 51. Kb6 {[%emt 0:00:13]} Kg3 {[%emt 0:00:29]} 52. c7 {[%emt 0:00:41]} Rc4 {[%emt 0:00:35]} 53. b5 {[%emt 0:01:16]} h2 {[%emt 0:00:30]} 54. bxa6 {[%emt 0:01:04]} Rb4+ {[%emt 0:00:26]} 55. Kc5 {[%emt 0:00:27]} Rb1 {[%emt 0:00:34]} 56. a7 {[%emt 0:00:21]} Rc1+ {[%emt 0:00:04]} 57. Kb6 {[%emt 0:00:20]} Rb1+ {[%emt 0:00:18]} 58. Ka6 {[%emt 0:00:16]} 1-0

[Event "Paracin Open 2022"]
[Site "Paracin"]
[Date "2022.07.12"]
[Round "5.6"]
[White "Pranav Vijay"]
[Black "Anuj Shrivatri"]
[Result "1-0"]
[ECO "C67"]
[WhiteElo "2265"]
[BlackElo "2383"]
[Annotator "ChessBase"]
[PlyCount "63"]
[EventDate "2022.07.08"]
[EventCountry "SRB"]
[SourceTitle "playchess.com"]
[Source "ChessBase"]
[SourceQuality "1"]
[TimeControl "5400+30"]

1. e4 {[%emt 0:00:02]} e5 {[%emt 0:00:06]} 2. Nf3 {[%emt 0:00:06]} Nc6 {[%emt 0:00:04]} 3. Bb5 {[%emt 0:00:07]} Nf6 {[%emt 0:00:06]} 4. O-O {[%emt 0:04:44]} Nxe4 {[%emt 0:03:06]} 5. d4 {[%emt 0:00:08]} Nd6 {[%emt 0:00:06]} 6. Ba4 {[%emt 0:00:12]} e4 {[%emt 0:00:58]} 7. Re1 {[%emt 0:00:37]} Be7 {[%emt 0:00:07]} 8. Ne5 {[%emt 0:00:06]} O-O {[%emt 0:00:08]} 9. Nc3 {[%emt 0:00:08]} f5 {[%emt 0:00:27]} 10. Bb3+ {[%emt 0:03:13]} Kh8 {[%emt 0:00:09]} 11. Bf4 {[%emt 0:03:31]} Nxe5 {[%emt 0:01:17]} 12. dxe5 {[%emt 0:12:10]} Nf7 {[%emt 0:00:42]} 13. Qh5 {[%emt 0:15:49]} g6 {[%emt 0:12:24]} 14. Qe2 {[%emt 0:02:13]} Qe8 {[%emt 0:09:07]} 15. Nb5 {[%emt 0:05:46]} Bd8 {[%emt 0:06:44]} 16. Qc4 {[%emt 0:00:14]} Nxe5 {[%emt 0:06:14]} 17. Qc3 {[%emt 0:00:55]} d6 {[%emt 0:00:59]} 18. Nxc7 {[%emt 0:00:10]} Bxc7 {[%emt 0:00:21]} 19. Qxc7 {[%emt 0:00:11]} Qd7 {[%emt 0:07:11]} 20. Qc3 {[%emt 0:04:57]} Qe7 {[%emt 0:07:16]} 21. Bh6 {[%emt 0:02:07]} Re8 {[%emt 0:06:27]} 22. Rad1 {[%emt 0:01:10]} Be6 {[%emt 0:02:18]} 23. f4 {[%emt 0:01:54]} Rac8 {[%emt 0:09:05]} 24. Qd4 {[%emt 0:00:15]} Bxb3 {[%emt 0:00:25]} 25. cxb3 {[%emt 0:00:08]} Rc2 {[%emt 0:01:54]} 26. fxe5 {[%emt 0:01:09]} dxe5 {[%emt 0:00:05]} 27. Qd7 {[%emt 0:00:07]} Rc7 {[%emt 0:01:42]} 28. Qd5 {[%emt 0:02:21]} Qh4 {[%emt 0:00:43]} 29. Be3 {[%emt 0:00:37]} Rc2 {[%emt 0:00:28]} 30. Rf1 {[%emt 0:02:18]} f4 {[%emt 0:01:45]} 31. Rxf4 {[%emt 0:01:58]} Qh5 {[%emt 0:01:25]} 32. Rf2 {[%emt 0:00:25]} 1-0

[Event "Paracin Open 2022"]
[Site "Paracin"]
[Date "2022.07.12"]
[Round "5.7"]
[White "Muthaiah AL"]
[Black "Gundavaa, Bayarsaikhan"]
[Result "0-1"]
[ECO "D36"]
[WhiteElo "2401"]
[BlackElo "2503"]
[Annotator "ChessBase"]
[PlyCount "74"]
[EventDate "2022.07.08"]
[EventCountry "SRB"]
[SourceTitle "playchess.com"]
[Source "ChessBase"]
[SourceQuality "1"]
[TimeControl "5400+30"]

1. d4 {[%emt 0:00:15]} Nf6 {[%emt 0:01:58]} 2. c4 {[%emt 0:00:24]} e6 {[%emt 0:00:13]} 3. Nf3 {[%emt 0:00:24]} d5 {[%emt 0:00:55]} 4. Nc3 {[%emt 0:00:39]} Nbd7 {[%emt 0:03:51]} 5. cxd5 {[%emt 0:05:21]} exd5 {[%emt 0:01:11]} 6. Bf4 {[%emt 0:02:03]} c6 {[%emt 0:00:08]} 7. e3 {[%emt 0:00:31]} Nh5 {[%emt 0:00:50]} 8. Bg5 {[%emt 0:02:59]} Be7 {[%emt 0:00:49]} 9. Bxe7 {[%emt 0:02:19]} Qxe7 {[%emt 0:00:06]} 10. Bd3 {[%emt 0:02:50]} Nf4 {[%emt 0:03:54]} 11. O-O {[%emt 0:02:05]} Nxd3 {[%emt 0:00:48]} 12. Qxd3 {[%emt 0:00:12]} O-O {[%emt 0:01:05]} 13. a3 {[%emt 0:16:01]} a5 {[%emt 0:03:07]} 14. Rfe1 {[%emt 0:09:29]} Nf6 {[%emt 0:19:01]} 15. Nd2 {[%emt 0:03:31]} Bg4 {[%emt 0:07:40]} 16. f3 {[%emt 0:02:29]} Bh5 {[%emt 0:02:15]} 17. Na4 {[%emt 0:06:12]} Bg6 {[%emt 0:01:13]} 18. Qc3 {[%emt 0:00:50]} Ne8 {[%emt 0:01:25]} 19. b4 {[%emt 0:08:13]} axb4 {[%emt 0:02:43]} 20. Qxb4 {[%emt 0:00:33]} Nd6 {[%emt 0:01:39]} 21. Nc5 {[%emt 0:00:48]} Rfb8 {[%emt 0:07:50]} 22. a4 {[%emt 0:01:29]} Nf5 {[%emt 0:09:37]} 23. e4 {[%emt 0:06:01]} dxe4 {[%emt 0:03:11]} 24. fxe4 {[%emt 0:01:28]} Nd6 {[%emt 0:00:37]} 25. a5 {[%emt 0:02:59]} h6 {[%emt 0:00:59]} 26. Nc4 {[%emt 0:09:58]} Nxc4 {[%emt 0:06:44]} 27. Qxc4 {[%emt 0:00:08]} b6 {[%emt 0:00:26]} 28. Nb3 {[%emt 0:04:58]} bxa5 {[%emt 0:02:07]} 29. Rxa5 {[%emt 0:04:06]} Rxa5 {[%emt 0:04:40]} 30. Nxa5 {[%emt 0:00:01]} Qg5 {[%emt 0:00:47]} 31. Nxc6 {[%emt 0:04:31]} Bxe4 {[%emt 0:01:39]} 32. g3 {[%emt 0:00:39]} Rb1 {[%emt 0:00:56]} 33. Kf2 {[%emt 0:01:48]} Qf6+ {[%emt 0:01:58]} 34. Ke2 {[%emt 0:00:16]} Qf3+ {[%emt 0:03:19]} 35. Kd2 {[%emt 0:00:01]} Qf2+ {[%emt 0:01:12]} 36. Re2 {[%emt 0:00:36]} Rb2+ {[%emt 0:00:03]} 37. Kd1 {[%emt 0:00:26]} Qf1+ {[%emt 0:00:03]} 0-1

[Event "Paracin Open 2022"]
[Site "Paracin"]
[Date "2022.07.12"]
[Round "5.8"]
[White "Harshavardhan G B"]
[Black "Song, Raymond"]
[Result "1-0"]
[ECO "E08"]
[WhiteElo "2397"]
[BlackElo "2499"]
[Annotator "ChessBase"]
[PlyCount "59"]
[EventDate "2022.07.08"]
[EventCountry "SRB"]
[SourceTitle "playchess.com"]
[Source "ChessBase"]
[SourceQuality "1"]
[TimeControl "5400+30"]

1. d4 {[%emt 0:00:24]} d5 {[%emt 0:00:05]} 2. c4 {[%emt 0:00:41]} e6 {[%emt 0:00:06]} 3. Nf3 {[%emt 0:00:37]} Nf6 {[%emt 0:00:05]} 4. g3 {[%emt 0:00:04]} Bb4+ {[%emt 0:00:03]} 5. Bd2 {[%emt 0:00:06]} Be7 {[%emt 0:00:04]} 6. Bg2 {[%emt 0:00:06]} O-O {[%emt 0:00:05]} 7. O-O {[%emt 0:00:05]} Nbd7 {[%emt 0:00:02]} 8. Qc2 {[%emt 0:00:24]} c6 {[%emt 0:00:05]} 9. Rd1 {[%emt 0:00:06]} b6 {[%emt 0:00:04]} 10. Bf4 {[%emt 0:00:24]} Bb7 {[%emt 0:00:07]} 11. Nbd2 {[%emt 0:02:45]} Nh5 {[%emt 0:00:21]} 12. Be3 {[%emt 0:01:58]} Rc8 {[%emt 0:01:26]} 13. Rac1 {[%emt 0:04:58]} Nhf6 {[%emt 0:00:07]} 14. Bg5 {[%emt 0:11:03]} c5 {[%emt 0:01:35]} 15. Qb1 {[%emt 0:03:29]} h6 {[%emt 0:04:30]} 16. Bxf6 {[%emt 0:01:38]} Bxf6 {[%emt 0:01:23]} 17. cxd5 {[%emt 0:01:24]} exd5 {[%emt 0:00:46]} 18. dxc5 {[%emt 0:01:01]} bxc5 {[%emt 0:04:58]} 19. e4 {[%emt 0:02:56]} Qb6 {[%emt 0:27:49]} 20. b3 {[%emt 0:05:48]} Rfe8 {[%emt 0:08:28]} 21. exd5 {[%emt 0:02:32]} Bxd5 {[%emt 0:00:01]} 22. Nc4 {[%emt 0:00:16]} Bxc4 {[%emt 0:00:19]} 23. Rxc4 {[%emt 0:02:33]} Nf8 {[%emt 0:03:34]} 24. Qf5 {[%emt 0:07:10]} Ne6 {[%emt 0:02:38]} 25. Rg4 {[%emt 0:00:23]} Nd4 {[%emt 0:03:55]} 26. Nxd4 {[%emt 0:04:08]} Bxd4 {[%emt 0:02:26]} 27. Be4 {[%emt 0:01:28]} Qb4 {[%emt 0:10:06]} 28. Rf4 {[%emt 0:04:24]} Rc7 {[%emt 0:01:25]} 29. Qh7+ {[%emt 0:00:29]} Kf8 {[%emt 0:00:01]} 30. Bd5 {[%emt 0:00:17]} 1-0

[Event "Paracin Open 2022"]
[Site "Paracin"]
[Date "2022.07.12"]
[Round "5.9"]
[White "Makhnev, Denis"]
[Black "Utsab Chatterjee"]
[Result "1-0"]
[ECO "E05"]
[WhiteElo "2492"]
[BlackElo "2377"]
[Annotator "ChessBase"]
[PlyCount "71"]
[EventDate "2022.07.08"]
[EventCountry "SRB"]
[SourceTitle "playchess.com"]
[Source "ChessBase"]
[SourceQuality "1"]
[TimeControl "5400+30"]

1. d4 {[%emt 0:00:04]} d5 {[%emt 0:00:24]} 2. Nf3 {[%emt 0:00:16]} Nf6 {[%emt 0:00:24]} 3. c4 {[%emt 0:00:09]} e6 {[%emt 0:00:05]} 4. g3 {[%emt 0:00:11]} Be7 {[%emt 0:00:26]} 5. Bg2 {[%emt 0:00:12]} O-O {[%emt 0:00:23]} 6. O-O {[%emt 0:00:08]} dxc4 {[%emt 0:00:11]} 7. Qc2 {[%emt 0:00:12]} a6 {[%emt 0:00:18]} 8. a4 {[%emt 0:00:13]} Bd7 {[%emt 0:00:39]} 9. Qxc4 {[%emt 0:00:11]} Bc6 {[%emt 0:00:09]} 10. Bf4 {[%emt 0:00:12]} Bd6 {[%emt 0:00:19]} 11. Qc1 {[%emt 0:00:12]} a5 {[%emt 0:00:19]} 12. Nc3 {[%emt 0:00:31]} Na6 {[%emt 0:00:18]} 13. Rd1 {[%emt 0:02:50]} Nb4 {[%emt 0:05:45]} 14. Bg5 {[%emt 0:00:20]} h6 {[%emt 0:00:30]} 15. Bh4 {[%emt 0:00:14]} Bxf3 {[%emt 0:00:24]} 16. Bxf3 {[%emt 0:00:09]} g5 {[%emt 0:01:04]} 17. Bxg5 {[%emt 0:00:14]} hxg5 {[%emt 0:00:07]} 18. Qxg5+ {[%emt 0:00:10]} Kh8 {[%emt 0:00:17]} 19. Bxb7 {[%emt 0:00:19]} Rb8 {[%emt 0:00:55]} 20. Bg2 {[%emt 0:09:27]} c6 {[%emt 0:03:31]} 21. Ne4 {[%emt 0:10:45]} Nh7 {[%emt 0:00:53]} 22. Qd2 {[%emt 0:13:07]} f5 {[%emt 0:03:08]} 23. Nxd6 {[%emt 0:01:09]} Qxd6 {[%emt 0:00:00]} 24. Rac1 {[%emt 0:00:48]} Rfd8 {[%emt 0:08:39]} 25. Rc4 {[%emt 0:02:27]} Rb7 {[%emt 0:11:22]} 26. Qc3 {[%emt 0:02:52]} e5 {[%emt 0:06:52]} 27. Rc5 {[%emt 0:15:47]} exd4 {[%emt 0:09:13]} 28. Qc4 {[%emt 0:00:13]} f4 {[%emt 0:00:52]} 29. Rxa5 {[%emt 0:00:37]} Nf6 {[%emt 0:03:21]} 30. Rc5 {[%emt 0:04:44]} fxg3 {[%emt 0:04:34]} 31. hxg3 {[%emt 0:00:08]} Ng4 {[%emt 0:01:39]} 32. Rh5+ {[%emt 0:02:59]} Rh7 {[%emt 0:00:05]} 33. Rxh7+ {[%emt 0:00:10]} Kxh7 {[%emt 0:00:02]} 34. Qf7+ {[%emt 0:00:14]} Kh6 {[%emt 0:00:38]} 35. Be4 {[%emt 0:01:03]} Rd7 {[%emt 0:02:13]} 36. Qg8 {[%emt 0:03:33]} 1-0

[Event "Paracin Open 2022"]
[Site "Paracin"]
[Date "2022.07.12"]
[Round "5.10"]
[White "Aditya Mittal"]
[Black "Ohanyan, Emin"]
[Result "1/2-1/2"]
[ECO "D37"]
[WhiteElo "2480"]
[BlackElo "2354"]
[Annotator "ChessBase"]
[PlyCount "97"]
[EventDate "2022.07.08"]
[EventCountry "SRB"]
[SourceTitle "playchess.com"]
[Source "ChessBase"]
[SourceQuality "1"]
[TimeControl "5400+30"]

1. d4 {[%emt 0:00:04]} Nf6 {[%emt 0:00:13]} 2. c4 {[%emt 0:00:01]} e6 {[%emt 0:00:06]} 3. Nf3 {[%emt 0:00:03]} d5 {[%emt 0:00:03]} 4. Nc3 {[%emt 0:00:04]} Nbd7 {[%emt 0:00:02]} 5. Bf4 {[%emt 0:00:47]} dxc4 {[%emt 0:00:19]} 6. e3 {[%emt 0:00:04]} b5 {[%emt 0:00:31]} 7. Nxb5 {[%emt 0:00:06]} Bb4+ {[%emt 0:00:17]} 8. Nc3 {[%emt 0:00:28]} Nd5 {[%emt 0:00:43]} 9. a3 {[%emt 0:00:19]} Nxc3 {[%emt 0:02:03]} 10. Qd2 {[%emt 0:00:03]} Bxa3 {[%emt 0:00:13]} 11. bxa3 {[%emt 0:00:14]} Nd5 {[%emt 0:03:37]} 12. Bg3 {[%emt 0:00:07]} Ba6 {[%emt 0:00:54]} 13. Qa5 {[%emt 0:00:21]} Qc8 {[%emt 0:00:17]} 14. Nd2 {[%emt 0:00:09]} c5 {[%emt 0:09:37]} 15. Rc1 {[%emt 0:26:05]} cxd4 {[%emt 0:18:44]} 16. Bxc4 {[%emt 0:01:17]} Bxc4 {[%emt 0:02:29]} 17. Rxc4 {[%emt 0:00:35]} Qb7 {[%emt 0:08:20]} 18. Rxd4 {[%emt 0:08:58]} O-O {[%emt 0:01:21]} 19. O-O {[%emt 0:01:05]} Rfc8 {[%emt 0:09:23]} 20. Ne4 {[%emt 0:05:14]} Rc2 {[%emt 0:02:34]} 21. Qa4 {[%emt 0:08:09]} Qc6 {[%emt 0:02:22]} 22. Qxc6 {[%emt 0:09:01]} Rxc6 {[%emt 0:00:05]} 23. h4 {[%emt 0:01:03]} N7b6 {[%emt 0:03:16]} 24. Nd2 {[%emt 0:06:01]} Rac8 {[%emt 0:03:59]} 25. Kh2 {[%emt 0:03:56]} Rc2 {[%emt 0:06:31]} 26. Rb1 {[%emt 0:08:30]} f6 {[%emt 0:04:07]} 27. Ne4 {[%emt 0:06:24]} e5 {[%emt 0:07:51]} 28. Rd3 {[%emt 0:00:20]} Nc3 {[%emt 0:03:06]} 29. Nxc3 {[%emt 0:02:38]} R2xc3 {[%emt 0:01:57]} 30. Rb3 {[%emt 0:00:29]} Rxb3 {[%emt 0:01:51]} 31. Rxb3 {[%emt 0:00:02]} Kf7 {[%emt 0:00:24]} 32. e4 {[%emt 0:01:48]} Rc2 {[%emt 0:02:44]} 33. Rb5 {[%emt 0:02:19]} Rc4 {[%emt 0:05:33]} 34. f3 {[%emt 0:00:01]} Ra4 {[%emt 0:00:22]} 35. Rb3 {[%emt 0:00:40]} Nc4 {[%emt 0:00:31]} 36. Bf2 {[%emt 0:00:01]} Rxa3 {[%emt 0:00:48]} 37. Rb7+ {[%emt 0:00:16]} Kg8 {[%emt 0:00:45]} 38. Bxa7 {[%emt 0:00:31]} h5 {[%emt 0:00:20]} 39. Bc5 {[%emt 0:00:35]} Ra5 {[%emt 0:01:01]} 40. Rc7 {[%emt 0:00:31]} Ra2 {[%emt 0:00:21]} 41. Kh3 {[%emt 0:00:44]} Rc2 {[%emt 0:00:26]} 42. Rc8+ {[%emt 0:00:44]} Kh7 {[%emt 0:00:25]} 43. Rd8 {[%emt 0:00:32]} Rd2 {[%emt 0:00:39]} 44. Ra8 {[%emt 0:01:16]} Rd7 {[%emt 0:00:48]} 45. Ra2 {[%emt 0:00:50]} Rc7 {[%emt 0:00:28]} 46. Bf2 {[%emt 0:00:32]} Nd6 {[%emt 0:00:20]} 47. Rd2 {[%emt 0:00:28]} Nf7 {[%emt 0:00:08]} 48. Rd5 {[%emt 0:00:22]} Nh8 {[%emt 0:00:16]} 49. Rd8 {[%emt 0:01:16]} 1/2-1/2